bitfinex-derivatives/quotes_ETHF0:USTF0_20250807
["timestamp","ask_amount","ask_price","bid_price","bid_amount"]
[1754549380516,60.6024,3706.8,3706.7,1.7129]
[1754549381021,60.8882,3706.8,3706.7,1.287]
[1754549381222,60.6024,3706.8,3706.7,1.7129]
[1754549381517,41.5154,3706.8,3706.7,1.7129]
[1754549381819,60.5934,3706.8,3706.7,1.7129]
[1754549382019,60.8792,3706.8,3706.7,1.7129]
[1754549382216,60.8792,3706.8,3706.7,0.2974]
[1754549382422,1.4165,3706.5,3706.4,1.7129]
[1754549382624,20.7733,3706.5,3706.4,0.9846]
[1754549382814,0.7011,3706.1,3705.8,2.44286594]
[1754549383014,1.7023,3705.9,3705.8,1.32369]
[1754549383216,1.7023,3705.9,3705.8,0.7841]
[1754549383413,1.7023,3705.9,3705.7,2.44288594]
[1754549383616,20.4805,3705.8,3705.7,2.44288594]
[1754549383821,20.4805,3705.8,3705.7,2.93948594]
[1754549384522,20.7663,3705.8,3705.7,2.93948594]
[1754549385618,20.7663,3705.8,3705.7,2.39987594]
[1754549385925,20.7663,3705.8,3705.7,2.20067594]
[1754549386429,20.7663,3705.8,3705.7,1.90327594]
[1754549387024,20.7663,3705.8,3705.7,2.20067594]
[1754549387527,20.7663,3705.8,3705.7,1.90327594]
[1754549388025,20.7663,3705.8,3705.7,0.53961]
[1754549388222,20.7663,3705.8,3705.5,2.20567594]
[1754549388223,1.7023,3705.7,3705.6,2.20067594]
[1754549388423,1.7023,3705.6,3705.5,0.5029]
[1754549388621,1.0012,3705.5,3705.4,2.44292594]
[1754549388827,1.7023,3705.5,3705.4,2.74032594]
[1754549389029,1.7023,3705.5,3705.4,2.93952594]
[1754549389423,1.7023,3705.5,3705.4,1.03625]
[1754549389724,2.92169881,3706.1,3705.4,1.0257]
[1754549389725,0.7011,3706.0,3705.4,1.0257]
[1754549389924,1.4165,3706.0,3705.9,1.7129]
[1754549390124,20.4455,3706.0,3705.9,1.7129]
[1754549390524,61.2465,3706.0,3705.9,1.7129]
[1754549390822,41.9347,3706.0,3705.9,1.7129]
[1754549391029,40.8,3706.0,3705.9,1.7129]
[1754549391222,59.826,3706.0,3705.9,1.7129]
[1754549391921,40.8,3706.0,3705.9,1.7129]
[1754549392124,19.026,3706.1,3706.0,2.25247]
[1754549392324,0.9829,3706.6,3706.5,0.6872]
[1754549392630,61.2395,3706.6,3706.5,1.7129]
[1754549393527,1.1347,3706.4,3706.3,0.2974]
[1754549393721,0.7011,3706.2,3705.9,0.84198]
[1754549393923,1.4165,3706.0,3705.9,1.82658]
[1754549394124,1.7023,3706.0,3705.9,1.287]
[1754549394324,0.7011,3705.8,3705.7,0.5396]
[1754549394629,1.4165,3705.7,3705.6,1.287]
[1754549394928,42.2165,3705.7,3705.6,1.7129]
[1754549396527,42.5023,3705.7,3705.6,0.9846]
[1754549396733,0.7011,3705.5,3705.4,0.83705]
[1754549396933,20.7093,3705.5,3705.4,0.83705]
[1754549397127,1.4165,3705.4,3705.3,1.52426]
[1754549397332,41.0858,3705.7,3705.6,0.6872]
[1754549397631,60.5194,3705.7,3705.6,1.7129]
[1754549398035,60.5194,3705.7,3705.6,0.7841]
[1754549398334,60.8052,3705.7,3705.6,0.7841]
[1754549398733,60.8052,3705.7,3705.6,1.287]
[1754549398940,60.8052,3705.7,3705.6,0.2974]
[1754549399130,0.723,3705.3,3705.1,1.03]
[1754549399337,0.3947,3705.3,3705.2,1.7384]
[1754549399533,19.002,3705.3,3705.2,1.7384]
[1754549400632,40.8,3705.7,3705.6,1.98133]
[1754549400835,19.004,3705.8,3705.7,1.7384]
[1754549401842,19.004,3705.8,3705.7,1.3032]
[1754549402139,1.4143,3705.7,3705.6,1.97993]
[1754549402641,1.4143,3705.7,3705.6,2.27803]
[1754549403338,0.723,3706.2,3705.9,1.54469]
[1754549403643,18.989,3706.1,3706.0,1.0065]
[1754549403843,0.1945,3706.1,3706.0,1.0065]
[1754549404136,19.6038,3706.1,3706.0,1.7384]
[1754549404335,19.804,3706.1,3706.0,1.7384]
[1754549404541,20.0976,3706.1,3706.0,1.7384]
[1754549404838,20.4003,3706.1,3706.0,1.7384]
[1754549405643,1.4143,3706.1,3706.0,1.7384]
[1754549405845,20.4003,3706.1,3706.0,1.7384]
[1754549406749,22.12995956,3706.1,3706.0,1.2414]
[1754549406937,22.42315956,3706.1,3706.0,0.8062]
[1754549407138,22.42315956,3706.1,3705.5,0.2981]
[1754549407139,0.6913,3705.9,3705.5,0.2981]
[1754549407438,1.7075,3705.4,3705.3,0.2981]
[1754549407639,0.6913,3705.2,3705.1,1.0384]
[1754549407833,20.3883,3705.2,3705.1,1.7384]
[1754549408256,61.1883,3705.2,3705.1,1.7384]
[1754549410346,61.4815,3705.2,3705.1,1.0065]
[1754549410645,61.4815,3705.2,3705.1,0.2981]
[1754549411234,59.761,3705.2,3705.1,1.7384]
[1754549411441,59.761,3705.2,3704.9,0.53973]
[1754549411647,59.761,3705.2,3704.4,2.41229611]
[1754549411648,1.1116,3704.7,3704.6,2.27817]
[1754549411844,1.4143,3704.7,3704.6,2.27817]
[1754549412041,1.7075,3704.7,3704.6,1.78117]
[1754549412347,1.4143,3704.7,3704.6,2.27817]
[1754549413043,1.0162,3705.0,3704.6,1.84297]
[1754549413252,1.4143,3705.0,3704.9,2.27813]
[1754549413446,20.0716,3705.0,3704.9,2.27813]
[1754549413647,20.6675,3705.0,3704.9,1.0065]
[1754549413953,20.6675,3705.0,3704.9,0.2981]
[1754549414553,20.6675,3705.0,3704.9,1.3032]
[1754549415057,40.8,3705.2,3705.1,1.7384]
[1754549415245,59.761,3705.2,3705.1,1.7384]
[1754549415443,62.21365956,3705.2,3704.1,2.41229611]
[1754549415650,40.8,3705.2,3705.1,2.2781]
[1754549415955,60.478,3705.2,3705.1,2.2781]
[1754549416653,60.478,3705.2,3705.1,1.7384]
[1754549417453,1.7075,3705.1,3705.0,0.2981]
[1754549417653,3.43715956,3705.1,3705.0,0.2981]
[1754549417856,1.513,3705.0,3704.9,0.2981]
[1754549418054,20.6575,3705.0,3704.9,0.2981]
[1754549418849,0.3027,3704.9,3704.7,0.7319]
[1754549419051,1.7075,3704.5,3704.4,0.8062]
[1754549419255,1.0162,3704.4,3703.8,1.03]
[1754549419455,20.67565956,3704.5,3703.6,1.72965956]
[1754549419456,19.9315,3704.3,3704.2,0.2006]
[1754549419659,20.3518,3704.3,3704.2,1.3032]
[1754549420053,20.6545,3704.3,3704.2,1.3032]
[1754549420259,20.3613,3704.3,3704.2,1.7384]
[1754549420957,61.4545,3704.3,3704.2,1.7384]
[1754549421155,61.4545,3704.3,3704.2,0.2981]
[1754549421454,1.7075,3704.1,3704.0,1.34605]
[1754549421651,1.4143,3704.1,3704.0,2.27825]
[1754549421851,18.945,3704.1,3704.0,2.27825]
[1754549422050,19.5598,3704.1,3704.0,2.27825]
[1754549422258,20.3593,3704.1,3704.0,2.27825]
[1754549422652,19.6363,3704.1,3704.0,2.27825]
[1754549422962,0.6913,3704.1,3704.0,2.27825]
[1754549423161,19.6353,3704.1,3704.0,2.27825]
[1754549423455,22.38115956,3704.1,3704.0,0.6056]
[1754549423657,0.7135,3704.0,3703.7,0.2981]
[1754549423862,3.43715956,3703.8,3703.7,0.4987]
[1754549424061,22.37115956,3703.8,3703.7,0.4987]
[1754549424359,22.37115956,3703.8,3703.7,1.03861]
[1754549424558,40.8,3704.3,3704.0,1.68346]
[1754549424749,40.8,3704.3,3704.2,2.27823]
[1754549425362,59.738,3704.3,3704.2,4.00788956]
[1754549425563,40.8,3704.3,3704.2,4.00788956]
[1754549425764,0.4203,3705.6,3705.1,1.5462]
[1754549426064,3.15716962,3706.5,3704.3,1.34954]
[1754549426065,1.7075,3705.4,3705.3,1.3032]
[1754549426262,20.16415956,3705.4,3705.3,1.3032]
[1754549426463,20.16415956,3705.4,3705.3,1.0065]
[1754549426663,60.96415956,3705.4,3705.3,1.0065]
[1754549427367,59.2345,3705.4,3705.3,0.8062]
[1754549427563,0.6913,3705.2,3705.1,1.98]
[1754549427868,20.3533,3705.2,3705.1,1.98]
[1754549428166,20.6465,3705.2,3705.1,2.2781]
[1754549428361,20.3533,3705.2,3705.1,2.2781]
[1754549428562,20.3533,3705.2,3705.1,0.4987]
[1754549428563,20.6395,3705.2,3705.1,0.4987]
[1754549428766,0.6913,3705.0,3704.6,0.2981]
[1754549428962,20.6355,3704.9,3704.8,0.4987]
[1754549429562,1.4143,3704.9,3704.8,1.7386]
[1754549429770,0.3865,3705.3,3705.2,1.7381]
[1754549430070,19.5982,3705.3,3705.2,2.27779]
[1754549430270,20.6053,3705.3,3705.2,0.84679]
[1754549430470,20.3106,3705.3,3705.2,2.27779]
[1754549430668,0.6722,3705.0,3704.9,0.6925]
[1754549430965,20.3096,3705.0,3704.9,1.7381]
[1754549431171,20.6043,3705.0,3704.9,0.9996]
[1754549431774,20.6093,3705.0,3704.9,1.309]
[1754549431964,20.3146,3705.0,3704.9,1.7381]
[1754549432868,20.6093,3705.0,3704.9,1.309]
[1754549433170,20.6093,3705.0,3704.9,0.3071]
[1754549433472,0.6722,3704.8,3704.7,1.309]
[1754549433670,20.3106,3704.8,3704.7,1.309]
[1754549433870,20.3106,3704.8,3704.7,1.7381]
[1754549434267,0.2833,3705.2,3704.7,1.0019]
[1754549434470,0.9555,3705.2,3705.1,1.7381]
[1754549434670,19.8705,3705.2,3705.1,1.309]
[1754549434872,20.1652,3705.2,3705.1,0.9996]
[1754549435173,20.5943,3705.2,3705.1,0.3071]
[1754549435367,0.6722,3704.9,3704.8,1.7381]
[1754549435671,20.3026,3704.9,3704.8,1.7381]
[1754549435865,20.5973,3704.9,3704.8,1.7381]
[1754549436067,20.5973,3704.9,3704.8,1.309]
[1754549436465,20.5973,3704.9,3704.8,0.9996]
[1754549437172,17.9263,3704.9,3704.8,0.9996]
[1754549438373,17.9263,3704.9,3704.8,1.309]
[1754549438672,17.9263,3704.9,3704.8,0.8041]
[1754549438873,18.0477,3704.9,3704.8,0.8041]
[1754549439270,17.9263,3704.9,3704.8,1.1135]
[1754549439470,17.9263,3704.9,3704.8,1.7381]
[1754549440569,17.9263,3704.9,3704.8,1.309]
[1754549440774,17.9263,3704.9,3704.8,0.3071]
[1754549441171,17.9263,3704.9,3704.8,0.8076]
[1754549441374,1.3361,3704.9,3704.8,1.1135]
[1754549441671,20.2331,3704.9,3704.8,1.309]
[1754549441871,20.2331,3704.9,3704.8,1.7381]
[1754549442269,40.8,3705.4,3705.2,0.3094]
[1754549442473,19.5087,3705.3,3705.2,1.431]
[1754549442673,19.6596,3705.3,3705.2,1.431]
[1754549442976,19.8275,3705.3,3705.2,1.7381]
[1754549444071,19.8225,3705.3,3705.2,1.7381]
[1754549444478,19.8225,3705.3,3705.2,1.309]
[1754549444676,19.8225,3705.3,3705.2,1.7381]
[1754549444970,22.74596326,3705.3,3705.2,1.7381]
[1754549445177,22.74596326,3705.3,3705.2,1.309]
[1754549445677,19.8155,3705.3,3705.2,1.7381]
[1754549446078,19.8155,3705.3,3705.2,1.309]
[1754549447175,22.73896326,3705.3,3705.2,1.309]
[1754549447780,22.86036326,3705.3,3705.2,0.3071]
[1754549448175,22.73896326,3705.3,3705.2,1.7381]
[1754549449473,22.73896326,3705.3,3705.2,0.3071]
[1754549449671,22.86036326,3705.3,3705.2,0.3071]
[1754549449874,22.73896326,3705.3,3705.2,0.9996]
[1754549450080,22.73896326,3705.3,3705.2,1.7381]
[1754549450376,22.73896326,3705.3,3705.2,1.309]
[1754549450576,0.9425,3705.0,3704.9,1.4287]
[1754549450776,19.7915,3705.0,3704.9,0.4982]
[1754549450979,19.7915,3705.0,3704.9,1.4287]
[1754549451283,19.7915,3705.0,3704.9,1.7381]
[1754549451978,21.52251112,3705.0,3704.9,1.7381]
[1754549452784,21.64391112,3705.0,3704.9,1.309]
[1754549452975,0.53973,3704.9,3703.9,2.41229611]
[1754549453183,1.73101112,3704.2,3704.1,1.7381]
[1754549453383,21.50851112,3704.2,3704.1,1.309]
[1754549453777,62.42991112,3704.2,3704.1,0.3071]
[1754549454181,0.6237,3703.9,3703.8,1.2355]
[1754549454488,21.51251112,3703.9,3703.8,0.3071]
[1754549454676,21.63391112,3703.9,3703.8,0.3071]
[1754549454985,62.43391112,3703.9,3703.8,0.3071]
[1754549455180,0.4357,3703.7,3703.6,0.3071]
[1754549455486,1.0639,3703.3,3703.2,0.3071]
[1754549455685,20.56801112,3703.3,3703.2,1.7381]
[1754549455988,20.57001112,3703.3,3703.2,1.7381]
[1754549456287,18.839,3703.3,3703.2,1.7381]
[1754549456588,19.7815,3703.3,3703.2,1.7381]
[1754549456785,1.73101112,3703.3,3703.2,1.7381]
[1754549457279,21.35151112,3703.3,3703.2,1.7381]
[1754549457479,21.35151112,3703.3,3703.2,0.3071]
[1754549457480,21.52001112,3703.3,3703.2,0.3071]
[1754549457686,21.64201112,3703.3,3703.2,0.3071]
[1754549457888,21.64201112,3703.3,3702.9,0.97219784]
[1754549458083,2.35701112,3703.0,3702.9,1.27929784]
[1754549458282,21.63931112,3703.0,3702.9,1.27929784]
[1754549458686,62.43931112,3703.0,3702.9,1.27929784]
[1754549459577,62.31731112,3703.0,3702.9,1.75779784]
[1754549459782,62.31731112,3703.0,3702.9,2.68179784]
[1754549459982,62.14981112,3703.0,3702.9,2.68179784]
[1754549460587,61.37201112,3703.0,3702.9,2.68179784]
[1754549461088,40.8,3703.0,3702.9,2.68179784]
[1754549461287,59.63,3703.0,3702.9,2.68179784]
[1754549461483,61.68131112,3703.0,3702.9,2.68179784]
[1754549462682,59.9503,3703.0,3702.9,2.68179784]
[1754549462883,59.9503,3703.0,3702.9,2.23209784]
[1754549463388,59.9523,3703.0,3702.9,1.95099784]
[1754549463690,59.9523,3703.0,3702.9,1.45619784]
[1754549463890,60.0743,3703.0,3702.9,1.45619784]
[1754549464688,59.9523,3703.0,3702.9,1.93679784]
[1754549464881,59.9523,3703.0,3702.9,2.21789784]
[1754549465389,60.0743,3703.0,3702.9,1.45619784]
[1754549465791,59.9523,3703.0,3702.9,1.93679784]
[1754549465993,59.617,3703.0,3702.9,2.66759784]
[1754549466194,59.9373,3703.0,3702.9,2.66759784]
[1754549467386,60.47731,3703.0,3702.9,2.21789784]
[1754549467580,60.59931,3703.0,3702.9,1.25279784]
[1754549468889,59.9373,3703.0,3702.9,2.21789784]
[1754549469083,59.9373,3703.0,3702.9,2.66759784]
[1754549469483,41.1203,3703.0,3702.9,2.66759784]
[1754549469686,59.614,3703.0,3702.9,2.66759784]
[1754549470192,40.8,3703.0,3702.9,2.66759784]
[1754549470390,18.82,3703.0,3702.9,2.66759784]
[1754549470895,40.8,3703.8,3703.7,0.684]
[1754549471093,59.7718,3703.8,3703.7,1.4148]
[1754549471293,59.7718,3703.8,3703.7,1.6954]
[1754549471294,59.7708,3703.8,3703.7,1.6954]
[1754549471794,59.9393,3703.8,3703.7,1.6954]
[1754549473695,59.7708,3703.8,3703.7,1.6954]
[1754549473996,59.609,3703.8,3703.7,1.6954]
[1754549475205,40.8,3703.8,3703.7,1.6954]
[1754549475699,59.602,3703.8,3703.7,1.6954]
[1754549476497,40.8,3703.8,3703.7,1.6954]
[1754549476697,0.8039,3704.6,3704.5,0.684]
[1754549476899,18.802,3704.6,3704.5,1.6954]
[1754549477104,60.04,3704.6,3704.5,1.6954]
[1754549477303,38.862,3704.7,3704.5,1.6954]
[1754549477602,0.7872,3705.2,3705.1,0.684]
[1754549477897,60.5577,3705.2,3705.1,1.6954]
[1754549478100,41.7557,3705.2,3705.1,1.6954]
[1754549478404,40.8,3705.2,3705.1,1.6954]
[1754549478606,62.84509214,3705.2,3705.1,1.6954]
[1754549479401,62.84509214,3705.2,3705.1,1.2457]
[1754549479606,62.96709214,3705.2,3705.1,0.2806]
[1754549480200,62.84509214,3705.2,3705.1,1.0525]
[1754549480408,62.84509214,3705.2,3705.1,1.6954]
[1754549480904,62.85409214,3705.2,3705.1,1.6954]
[1754549481211,62.85109214,3705.2,3705.1,0.9583]
[1754549481410,62.85109214,3705.2,3705.1,0.2806]
[1754549481711,62.85109214,3705.2,3705.1,1.2457]
[1754549481910,62.85109214,3705.2,3705.1,1.6954]
[1754549482107,62.85109214,3705.2,3705.1,1.2457]
[1754549482612,62.97309214,3705.2,3705.1,0.2806]
[1754549483313,0.9557,3704.9,3704.8,0.2806]
[1754549483514,19.7557,3704.9,3704.8,0.484]
[1754549483814,19.7557,3704.9,3704.8,1.2457]
[1754549484611,21.48719919,3704.9,3704.8,1.2457]
[1754549485108,0.6354,3704.7,3704.6,0.7719]
[1754549485315,19.7527,3704.7,3704.6,1.2457]
[1754549485709,20.52649919,3704.7,3704.6,1.6954]
[1754549486306,61.32649919,3704.7,3704.6,1.6954]
[1754549486511,61.47829919,3704.7,3704.6,1.6954]
[1754549487619,61.64679919,3704.7,3704.6,1.6954]
[1754549488313,42.53149919,3704.7,3704.6,1.6954]
[1754549488519,61.31749919,3704.7,3704.6,1.6954]
[1754549491018,61.46869919,3704.7,3704.6,1.6954]
[1754549491220,42.68269919,3704.7,3704.6,1.6954]
[1754549491421,61.31049919,3704.7,3704.6,1.6954]
[1754549492223,42.53149919,3704.7,3704.6,1.6954]
[1754549492518,61.31049919,3704.7,3704.6,1.6954]
[1754549493219,61.30949919,3704.7,3704.6,1.6954]
[1754549493423,42.85079919,3704.7,3704.6,1.6954]
[1754549493624,61.62879919,3704.7,3704.6,1.6954]
[1754549493820,61.46069919,3704.7,3704.6,1.6954]
[1754549494531,1.31648,3705.3,3705.2,1.4321]
[1754549494821,62.79407919,3705.3,3705.2,1.7148]
[1754549495518,44.01607919,3705.3,3705.2,1.7148]
[1754549495823,62.79407919,3705.3,3705.2,1.7148]
[1754549496430,0.6256,3704.7,3704.6,0.9717]
[1754549496723,21.45439919,3704.7,3704.6,0.9717]
[1754549497127,21.45439919,3704.7,3704.6,1.7148]
[1754549497625,21.28629919,3704.7,3704.6,1.7148]
[1754549498022,21.13409919,3704.7,3704.6,1.7148]
[1754549498631,21.28529919,3704.7,3704.6,1.7148]
[1754549499724,21.45339919,3704.7,3704.6,1.7148]
[1754549501129,21.45339919,3704.7,3704.6,0.2827]
[1754549501431,21.57499919,3704.7,3704.6,0.2827]
[1754549502831,0.53982,3704.3,3704.2,0.6436]
[1754549503032,21.99321919,3704.3,3704.2,1.7148]
[1754549503434,21.45339919,3704.3,3704.2,1.7148]
[1754549503935,62.25339919,3704.3,3704.2,1.7148]
[1754549504526,62.01641919,3704.3,3704.2,0.689]
[1754549504831,62.16761919,3704.3,3704.2,1.7148]
[1754549505338,0.53991,3703.7,3703.6,0.2827]
[1754549505531,21.67400919,3703.7,3703.6,0.4859]
[1754549505731,21.67400919,3703.7,3703.6,1.2705]
[1754549505932,21.67400919,3703.7,3703.6,1.7148]
[1754549506139,21.99330919,3703.7,3703.6,1.7148]
[1754549507034,21.45339919,3703.7,3703.6,1.7148]
[1754549507635,0.53979,3704.5,3703.6,1.7148]
[1754549507829,19.8307,3704.4,3704.3,1.7148]
[1754549508030,21.99319919,3704.4,3704.3,1.7148]
[1754549508234,21.99419919,3704.4,3704.3,1.2705]
[1754549508442,62.79419919,3704.4,3704.3,1.2705]
[1754549508835,44.01619919,3704.4,3704.3,1.2705]
[1754549509038,62.79419919,3704.4,3704.3,1.7148]
[1754549509342,63.48373834,3704.4,3704.3,1.7148]
[1754549509739,0.53984,3704.2,3703.8,0.4443]
[1754549509938,0.6256,3704.0,3703.9,1.7148]
[1754549510244,2.67639919,3704.0,3703.9,1.7148]
[1754549510540,2.67639919,3704.0,3703.9,1.2705]
[1754549510939,2.67639919,3704.0,3703.9,1.7148]
[1754549512236,2.16799919,3704.0,3703.9,1.7148]
[1754549512438,8.67639919,3704.0,3703.0,0.2827]
[1754549512642,1.73149919,3703.3,3703.2,0.9717]
[1754549512943,20.50949919,3703.3,3703.2,1.7148]
[1754549514031,21.13509919,3703.3,3703.2,1.7148]
[1754549514234,21.28629919,3703.3,3703.2,1.7148]
[1754549514439,20.50949919,3703.3,3703.2,1.7148]
[1754549515035,1.73149919,3703.9,3703.6,0.5815]
[1754549515242,1.73149919,3703.9,3703.8,1.4321]
[1754549515444,61.30949919,3703.9,3703.8,1.7148]
[1754549515632,61.50409919,3703.9,3703.8,1.7148]
[1754549515835,61.65529919,3703.9,3703.8,1.7148]
[1754549516036,43.04539919,3703.9,3703.8,1.7148]
[1754549516246,61.82339919,3703.9,3703.8,1.7148]
[1754549516841,0.431,3703.6,3703.5,0.9301]
[1754549517043,21.45439919,3703.6,3703.5,0.9878]
[1754549517340,0.3193,3703.2,3702.9,1.41649784]
[1754549517537,2.35709919,3703.0,3702.9,1.66119784]
[1754549517737,2.35709919,3703.0,3702.9,0.97219784]
[1754549517738,2.67639919,3703.0,3702.9,0.97219784]
[1754549518044,2.67639919,3703.0,3702.9,1.74459784]
[1754549518448,43.47639919,3703.0,3702.9,2.24269784]
[1754549518646,41.7449,3703.0,3702.9,2.24269784]
[1754549519147,41.7449,3703.0,3702.9,1.74459784]
[1754549519448,41.8658,3703.0,3702.9,1.25489784]
[1754549520841,41.8658,3703.0,3702.9,0.97219784]
[1754549521546,0.5401,3702.4,3701.7,0.54019]
[1754549521849,3.48430462,3701.9,3701.8,1.7053]
[1754549522041,22.26330462,3701.9,3701.8,1.7053]
[1754549522445,0.54018,3701.8,3701.1,0.2984]
[1754549522644,3.48430462,3701.3,3701.2,1.7053]
[1754549522844,3.48430462,3701.3,3700.6,0.54036]
[1754549522845,0.1674,3701.1,3700.6,0.54036]
[1754549523046,0.39,3700.9,3700.8,1.7053]
[1754549523345,0.1209,3701.6,3700.8,1.7053]
[1754549523346,0.54023,3701.5,3700.8,1.1203]
[1754549523541,2.92690462,3701.8,3701.6,0.1987]
[1754549523745,60.1474,3701.7,3701.6,1.2802]
[1754549523942,40.8,3701.7,3701.6,1.2802]
[1754549524244,59.589,3701.7,3701.6,1.2802]
[1754549524835,40.8,3701.7,3701.6,1.2802]
[1754549525050,59.586,3701.7,3701.6,1.2802]
[1754549525239,59.7534,3701.7,3701.6,0.2984]
[1754549525442,0.39,3701.4,3701.3,0.7117]
[1754549525643,22.27230462,3701.4,3701.3,1.2802]
[1754549525850,22.27230462,3701.4,3701.3,1.7053]
[1754549526045,40.8,3701.7,3701.3,1.7053]
[1754549526240,18.9895,3701.6,3701.5,0.4971]
[1754549526445,18.9895,3701.6,3701.5,1.7053]
[1754549526446,19.3534,3701.6,3701.5,1.7053]
[1754549530052,19.3534,3701.6,3701.5,1.2802]
[1754549530351,19.3534,3701.6,3701.5,1.7053]
[1754549530852,19.3568,3701.6,3701.5,1.7053]
[1754549531347,40.8,3701.7,3701.6,0.83861]
[1754549531553,40.8,3701.7,3701.6,2.24551]
[1754549531845,59.586,3701.7,3701.6,2.24551]
[1754549532444,59.586,3701.7,3701.6,1.7053]
[1754549532646,59.7557,3701.7,3701.6,1.7053]
[1754549532950,40.8,3701.7,3701.6,1.7053]
[1754549533259,59.586,3701.7,3701.6,1.7053]
[1754549533948,40.8,3701.7,3701.6,1.7053]
[1754549534147,59.586,3701.7,3701.6,1.7053]
[1754549538252,40.8,3701.7,3701.6,1.7053]
[1754549538550,59.586,3701.7,3701.6,1.7053]
[1754549538853,40.8,3701.7,3701.6,1.7053]
[1754549539047,59.586,3701.7,3701.6,1.7053]
[1754549540053,40.8,3701.7,3701.6,1.7053]
[1754549540262,59.586,3701.7,3701.6,1.7053]
[1754549540454,59.5873,3701.7,3701.6,1.7053]
[1754549540650,61.48966156,3701.7,3701.6,1.7053]
[1754549541153,61.32126156,3701.7,3701.6,1.7053]
[1754549541446,40.8,3701.7,3701.6,1.7053]
[1754549541641,59.586,3701.7,3701.6,1.7053]
[1754549541838,1.73396156,3702.3,3701.6,1.7053]
[1754549542040,2.12756156,3702.8,3702.7,0.6952]
[1754549542252,61.88326156,3702.8,3702.7,1.7053]
[1754549542646,41.1662,3702.8,3702.7,1.2802]
[1754549542845,59.5873,3702.8,3702.7,1.7053]
[1754549543044,40.8,3702.8,3702.7,1.7053]
[1754549543353,59.586,3702.8,3702.7,1.7053]
[1754549543557,59.7557,3702.8,3702.7,1.7053]
[1754549544550,59.585,3702.8,3702.7,1.7053]
[1754549545853,59.5863,3702.8,3702.7,1.7053]
[1754549546554,18.9813,3702.8,3702.7,1.7053]
[1754549546853,18.9793,3702.8,3702.7,1.7053]
[1754549547056,59.7793,3702.8,3702.7,1.7053]
[1754549547243,59.9477,3702.8,3702.5,0.54008]
[1754549547448,0.1986,3702.6,3702.5,1.23528]
[1754549547653,19.3463,3702.6,3702.5,1.53368]
[1754549548056,19.3463,3702.6,3702.5,0.9936]
[1754549548356,19.4681,3702.6,3702.5,0.2984]
[1754549548747,19.3463,3702.6,3702.5,0.7837]
[1754549548950,19.3463,3702.6,3702.5,1.2802]
[1754549549145,19.3463,3702.6,3702.5,0.9936]
[1754549549346,0.3941,3702.4,3702.3,0.3055]
[1754549549559,19.3437,3702.4,3702.3,1.7454]
[1754549549859,19.1761,3702.4,3702.3,1.7454]
[1754549550250,18.9758,3702.4,3702.3,1.7454]
[1754549551057,0.5617,3702.7,3702.6,1.7454]
[1754549551355,19.3437,3702.7,3702.6,1.7454]
[1754549552460,19.3437,3702.7,3702.4,0.54009]
[1754549552656,0.6828,3702.5,3702.4,0.3055]
[1754549552959,19.4638,3702.5,3702.4,0.3055]
[1754549554959,19.4638,3702.5,3702.1,1.0559]
[1754549555159,0.3941,3702.3,3702.2,0.1953]
[1754549555356,19.3427,3702.3,3702.2,1.4399]
[1754549555861,19.3427,3702.3,3702.2,1.7454]
[1754549556264,2.92707291,3702.8,3702.3,0.54011]
[1754549556456,2.92707291,3702.8,3702.6,0.6826]
[1754549556457,18.9738,3702.7,3702.6,0.6826]
[1754549556863,19.3417,3702.7,3702.6,1.2971]
[1754549557167,19.3417,3702.7,3702.6,1.7454]
[1754549558354,40.8,3703.0,3702.6,0.6826]
[1754549558558,40.8,3703.0,3702.8,0.6826]
[1754549558559,41.34001,3703.0,3702.8,0.6826]
[1754549558764,18.9738,3702.9,3702.8,1.7454]
[1754549558958,19.1741,3702.9,3702.8,1.7454]
[1754549559367,19.3417,3702.9,3702.8,0.5008]
[1754549559561,0.1676,3702.8,3702.4,0.98839]
[1754549559869,0.3941,3702.5,3702.4,0.6826]
[1754549560060,19.3417,3702.5,3702.4,0.6826]
[1754549560257,19.3417,3702.5,3702.4,1.2971]
[1754549560658,19.3417,3702.5,3702.4,1.7454]
[1754549561062,19.3417,3702.5,3702.4,0.7994]
[1754549561365,19.4628,3702.5,3702.4,0.3055]
[1754549561565,2.92707291,3702.8,3702.7,0.6826]
[1754549561566,3.32117291,3702.8,3702.7,0.6826]
[1754549561871,22.10017291,3702.8,3702.4,0.6041]
[1754549562069,0.3941,3702.6,3702.5,1.7454]
[1754549562269,19.3407,3702.6,3702.5,1.7454]
[1754549564776,21.07387972,3702.6,3702.5,1.7454]
[1754549567877,21.07387972,3702.6,3702.5,1.2971]
[1754549568080,21.07387972,3702.6,3702.5,0.3055]
[1754549568275,21.19497972,3702.6,3702.5,0.3055]
[1754549571078,21.19497972,3702.6,3702.5,0.6145]
[1754549571379,21.19497972,3702.6,3702.5,0.8098]
[1754549571985,21.07387972,3702.6,3702.5,1.7454]
[1754549572175,21.06987972,3702.6,3702.5,1.7454]
[1754549573574,20.90227972,3702.6,3702.1,0.84563]
[1754549573878,0.5617,3702.3,3702.2,1.5567]
[1754549574076,0.3941,3701.9,3701.8,1.2971]
[1754549574384,19.3367,3701.9,3701.8,1.7454]
[1754549574980,21.06987972,3701.9,3701.8,1.7454]
[1754549575181,20.50817972,3701.9,3701.8,1.7454]
[1754549576883,21.06987972,3701.9,3701.8,1.7454]
[1754549577885,20.70197972,3701.9,3701.8,1.7454]
[1754549578078,20.50817972,3701.9,3701.8,1.7454]
[1754549579588,21.07317972,3701.9,3701.8,1.7454]
[1754549581381,21.07317972,3701.9,3701.5,0.54022]
[1754549581577,0.5666,3701.7,3701.6,1.3024]